Cogmind - Beta 16.1 @@@ ROGUE MODE // 2026.03.16 @ 22:59:16 Player: Triffids Result: Self-destructed Performance ------------- Evolutions (2) 1000 Regions Visited (6) 1200 Robots Destroyed (21) 105 Value Destroyed (363) 363 Prototype IDs (24) 480 Alien Tech Used (0) 0 Bonus (300) 300 TOTAL SCORE: 3448 Bonus ------- Aligned with FarCom 300 Cogmind --------- Core Integrity 401/550 Matter 268/300 Energy 59/100 System Corruption 0% Temperature Cool (0) Movement Rolling (80) Location -8/Materials Parts ------- > --- POWER (1) -------- (None) > --- PROPULSION (2) --- Armored Wheel > --- UTILITY (5) ------ Cooling System Small Storage Unit Improved Terrain Scanner 0b10 Alert Chip > --- WEAPON (3) ------- Medium Laser Medium Laser > --- INVENTORY (8) ---- Deuterium Engine Light Nuclear Core Armored Wheel Improved Terrain Scanner Seismic Detector Medium Laser Medium Laser Rocket Launcher Peak State ------------ > --- POWER ------------ Ion Engine > --- PROPULSION ------- Armored Wheel Armored Wheel > --- UTILITY ---------- Cooling System Small Storage Unit Improved Terrain Scanner Terrain Scan Processor 0b10 Alert Chip > --- WEAPON ----------- Medium Laser Medium Laser Slug Cannon > --- INVENTORY -------- Light Ion Engine Deuterium Engine Armored Wheel Improved Terrain Scanner Seismic Detector Medium Laser Medium Laser Rocket Launcher [Rating: 26] Favorites ----------- Power Ion Engine Engine Ion Engine Propulsion Armored Wheel Leg Aluminum Leg Wheel Armored Wheel Utility Small Storage Unit Device Seismic Detector Storage Small Storage Unit Processor Terrain Scan Processor Weapon Medium Laser Energy Gun Medium Laser Ballistic Gun Light Assault Rifle Ballistic Cannon Slug Cannon Build | -11 -10 -9 -9 -9 -8 -8 ------- Run | Yrd Mat Mat Min Exi Min Mat Slots Evolved 4 | . . 2 . . . 2 Power . | . . . . . . . Propulsion . | . . . . . . . Utility 3 | . . 2 . . . 1 Weapon 1 | . . . . . . 1 Parts Attached 22 | 7 3 7 . . . 5 Power 3 | 1 1 1 . . . . Engine 3 | 1 1 1 . . . . Core . | . . . . . . . Reactor . | . . . . . . . Propulsion 5 | 2 . 2 . . . 1 Treads . | . . . . . . . Leg 2 | 2 . . . . . . Wheel 3 | . . 2 . . . 1 Hover . | . . . . . . . Flight . | . . . . . . . Utility 7 | 2 . 2 . . . 3 Device 4 | 1 . 1 . . . 2 Storage 1 | 1 . . . . . . Processor 2 | . . 1 . . . 1 Hackware . | . . . . . . . Protection . | . . . . . . . Artifact . | . . . . . . . Weapon 7 | 2 2 2 . . . 1 Energy Gun 5 | 1 2 2 . . . . Energy Cannon . | . . . . . . . Ballistic Gun 1 | 1 . . . . . . Ballistic Cannon 1 | . . . . . . 1 Launcher . | . . . . . . . Special Weapon . | . . . . . . . Impact Weapon . | . . . . . . . Slashing Weapon . | . . . . . . . Piercing Weapon . | . . . . . . . Special Melee Weapon . | . . . . . . . Unidentified Prototypes 1 | . . 1 . . . . Parts Lost 5 | . . 2 . . . 3 Power 2 | . . 1 . . . 1 Propulsion 1 | . . 1 . . . . Utility 1 | . . . . . . 1 Weapon 1 | . . . . . . 1 Highest Loss Streak 3 | . . 1 . . . 3 To Critical Strikes . | . . . . . . . Average Backups 7 | 3 7 7 8 8 8 7 Power 1 | . 1 . 1 1 1 1 Propulsion . | . . . 1 1 1 1 Utility 1 | . 2 1 1 1 2 1 Weapon 4 | 1 4 5 4 4 4 3 Tool/Special . | . . . . . . . Unused Backups 13 | 1 2 2 1 1 . 6 Power 3 | . . . . . . 3 Propulsion . | . . . . . . . Utility 3 | 1 1 . 1 . . . Weapon 7 | . 1 2 . 1 . 3 Tool/Special . | . . . . . . . Average Slot Usage (%) 99 | . 100 99 100 100 100 97 Engine 10 | . 14 11 11 11 11 8 Leg 8 | . 28 16 . . . . Wheel 13 | . . 4 22 22 22 17 Device 19 | . 14 22 22 22 22 18 Storage 11 | . 14 11 11 11 11 9 Processor 10 | . . 10 11 11 11 17 Energy Gun 21 | . 25 22 22 22 22 18 Ballistic Cannon 1 | . . . . . . 8 Peak Build Rating 26 | 7 8 15 15 15 15 26 Average Rating 14 | 6 7 13 15 15 15 24 On Entrance 10 | . 7 8 15 15 15 15 Avg Prop Armor Cover (%) 38 | 38 . . . . . . Naked Turns . | . . . . . . . Heaviest Build 24 | 13 15 16 16 16 16 24 Greatest Support 24 | 20 20 24 24 24 24 24 Greatest Overweight (x) 1 | . . 1 . . . 1 Average Overweight (x) . | . . . . . . . Largest Inventory Capacity 8 | 8 8 8 8 8 8 8 Average Capacity 7 | 7 8 8 8 8 8 8 Most Carried 8 | 5 8 8 8 8 8 8 Average Carried 7 | 3 7 7 8 7 8 7 Final Capacity 8 | 8 8 8 8 8 8 8 Final Carried 8 | 5 8 8 8 8 8 8 Class Distribution -------------------- 59% | Mutant 27% | Skirmisher 13% | Scavenger-Mutant Dominant Class ---------------- Mutant | -10/Materials Mutant | -9/Materials Mutant | -9/Mines Mutant | -9/Exiles Skirmisher | -8/Mines Skirmisher | -8/Materials Resources | -11 -10 -9 -9 -9 -8 -8 ----------- Run | Yrd Mat Mat Min Exi Min Mat Matter Collected 465 | 302 31 62 13 . . 57 Remotely . | . . . . . . . Salvage Created 623 | 142 185 96 68 . 41 91 Parts 55 | 22 14 11 7 . . 1 Haulers Intercepted 2 | . 1 1 . . . . Recyclers Shooed 1 | 1 . . . . . . Parts Field Recycled . | . . . . . . . Retrieved Matter . | . . . . . . . Parts Self-Destructed . | . . . . . . . Prevented . | . . . . . . . Parts Restored . | . . . . . . . Kills | -11 -10 -9 -9 -9 -8 -8 ------- Run | Yrd Mat Mat Min Exi Min Mat Combat Hostiles Destroyed 10 | . 3 3 1 . 1 2 Guns 8 | . 3 3 1 . . 1 Classes Destroyed 8 | 2 4 . 1 . 1 . Worker 2 | 2 . . . . . . Builder 1 | . . . 1 . . . Tunneler 5 | 5 . . . . . . Hauler 2 | . 1 1 . . . . Watcher 1 | . 1 . . . . . Swarmer 4 | . 1 3 . . . . Grunt 5 | . 2 . 1 . . 2 Hunter 1 | . . . . . 1 . Best Kill Streak 3 | 3 2 3 1 . 1 2 Combat Bots Only 3 | . 1 3 1 . 1 2 Max Kills in Single Turn 1 | 1 1 1 1 . 1 1 Gunslinging . | . . . . . . . Exploded . | . . . . . . . Melee . | . . . . . . . Uniques/NPCs Destroyed . | . . . . . . . Combat | -11 -10 -9 -9 -9 -8 -8 -------- Run | Yrd Mat Mat Min Exi Min Mat Hostile Shots Fired 127 | . 30 22 10 . 9 56 Missed 49 | . 15 8 2 . 4 20 Hits 78 | . 15 14 8 . 5 36 Projectile 78 | . 15 14 8 . 5 36 Critical Strikes 6 | . . . 1 . . 5 Damage Taken 1149 | . 189 171 104 . 78 607 Core 305 | . 54 25 35 . 42 149 Absorbed by Shields . | . . . . . . . Core Remaining (%) 84 | 100 78 . . . 74 . Volleys Fired 74 | 19 20 15 6 . 5 9 Largest 3 | 2 2 2 2 . 2 3 Hottest 140 | 60 100 100 100 . 100 140 Shots Fired 157 | 38 40 30 12 . 10 27 Gun 148 | 38 40 30 12 . 10 18 Cannon 9 | . . . . . . 9 Launcher . | . . . . . . . Special . | . . . . . . . Kinetic 29 | 19 1 . . . . 9 Thermal 128 | 19 39 30 12 . 10 18 Explosive . | . . . . . . . Electromagnetic . | . . . . . . . Robot Hit Streak 14 | 6 4 5 4 . 7 14 Robot Miss Streak 6 | 2 5 6 1 . 1 4 Penetration Max . | . . . . . . . Secondary Targets 1 | . . 1 . . . . Max Gunslinging Chain 1 | . . 1 . . . . Shots Hit Robots 85 | 24 17 14 8 . 8 14 Core Hits 34 | 10 8 5 5 . 1 5 Critical Kills . | . . . . . . . Critical Parts Destroyed 2 | 1 . . . . . 1 Critical Strikes 9 | 1 2 . 1 . 2 3 Burn 7 | . 2 . 1 . 2 2 Destroy 2 | 1 . . . . . 1 Melee Attacks . | . . . . . . . Impact . | . . . . . . . Slashing . | . . . . . . . Piercing . | . . . . . . . Sneak Attacks . | . . . . . . . Combat Hostiles . | . . . . . . . Follow-up Attacks . | . . . . . . . Damage Inflicted 1077 | 242 213 183 115 . 100 224 Guns 977 | 242 213 183 115 . 100 124 Cannons 100 | . . . . . . 100 Explosions . | . . . . . . . Melee . | . . . . . . . Ramming . | . . . . . . . Kinetic 178 | 78 . . . . . 100 Thermal 899 | 164 213 183 115 . 100 124 Explosive . | . . . . . . . Electromagnetic . | . . . . . . . Impact . | . . . . . . . Slashing . | . . . . . . . Piercing . | . . . . . . . Highest Corruption . | . . . . . . . Average Corruption . | . . . . . . . Corruption Purged . | . . . . . . . Corruption Blocked . | . . . . . . . Overload Shots . | . . . . . . . Overflow Damage 22 | . . . . . . 22 Projectiles 22 | . . . . . . 22 Explosions . | . . . . . . . Melee . | . . . . . . . Knockbacks 2 | . . . . . . 2 Impact . | . . . . . . . Kinetic 2 | . . . . . . 2 Secondary . | . . . . . . . Self-Inflicted Damage . | . . . . . . . Shots . | . . . . . . . Rammed . | . . . . . . . Targets Rammed . | . . . . . . . Kicked . | . . . . . . . Crushed . | . . . . . . . Highest Temperature 294 | 60 195 240 135 . 150 294 Average Temperature 67 | 24 61 82 58 . 77 144 Received Heat Transfer 360 | . 66 . 78 . . 216 Effects 1 | . . . . . . 1 Energy Bleed 1 | . . . . . . 1 Siege Activations . | . . . . . . . Martial Activations . | . . . . . . . Shielding Activations . | . . . . . . . Robots Disrupted . | . . . . . . . Combat Hostiles . | . . . . . . . Robots Corrupted . | . . . . . . . Combat Hostiles . | . . . . . . . Parts Fried . | . . . . . . . Impact Corruptions . | . . . . . . . Robots Melted 2 | . . . . . 1 1 Combat Hostiles 2 | . . . . . 1 1 Parts Melted 5 | . . 1 1 . 2 1 Heat Transferred 3076 | 375 777 555 407 . 444 518 Parts Sabotaged . | . . . . . . . Parts Stolen . | . . . . . . . Parts Stripped . | . . . . . . . Power Chain Reactions . | . . . . . . . Alert | -11 -10 -9 -9 -9 -8 -8 ------- Run | Yrd Mat Mat Min Exi Min Mat Maximum Alert Level . | . . . . . . . Low Security (%) 100 | 100 100 100 100 . 100 100 Level 1 . | . . . . . . . Level 2 . | . . . . . . . Level 3 . | . . . . . . . Level 4 . | . . . . . . . Level 5 . | . . . . . . . High Security . | . . . . . . . Max Security . | . . . . . . . Peak Influence 50 | 15 21 50 20 . 30 50 Initial 4 | . . 4 1 . . 3 Average 5 | 2 5 8 1 . 6 5 Influence Increases 355 | 35 85 79 25 . 30 101 Destroy 0b10 Robot/C 192 | . 60 60 20 . 20 32 Destroy 0b10 Robot/NC 55 | 35 10 5 5 . . . Destroy Leader 36 | . 14 12 . . 10 . Successful Hack 6 | . . 2 . . . 4 Disable Machine 12 | . . . . . . 12 Destroy Structure 6 | . 1 . . . . 5 Lose Combat Pursuer 48 | . . . . . . 48 Influence Decreases 353 | 35 74 85 20 10 20 109 Entered New Map 28 | . . 7 4 10 . 7 Time Decay 285 | 35 74 68 16 . 20 72 Lost Part 40 | . . 10 . . . 30 Squads Dispatched 3 | . 2 . . . . 1 Investigation 1 | . 1 . . . . . Extermination . | . . . . . . . Reinforcement 2 | . 1 . . . . 1 Assault . | . . . . . . . Garrison . | . . . . . . . Intercept . | . . . . . . . Searches Triggered . | . . . . . . . Construction Impeded . | . . . . . . . Haulers Reinforced . | . . . . . . . Active Scanning Responses . | . . . . . . . Cargo Convoy Interrupts . | . . . . . . . Stealth | -11 -10 -9 -9 -9 -8 -8 --------- Run | Yrd Mat Mat Min Exi Min Mat Distress Signals 5 | . 1 . . . . 4 Communications Jammed . | . . . . . . . Distress Signals . | . . . . . . . Times Spotted 41 | . 11 10 2 . 1 17 Peak Tracking Total 11 | . 5 4 2 . 1 11 Tactical Retreats 2 | . . . . . . 2 Traps | -11 -10 -9 -9 -9 -8 -8 ------- Run | Yrd Mat Mat Min Exi Min Mat Traps Triggered 2 | . 1 1 . . . . Indirectly . | . . . . . . . Trap Hack Attempts . | . . . . . . . Triggered . | . . . . . . . Disarmed . | . . . . . . . Reprogrammed . | . . . . . . . Reused . | . . . . . . . Traps Extracted . | . . . . . . . Installed . | . . . . . . . Triggered . | . . . . . . . Machines | -11 -10 -9 -9 -9 -8 -8 ---------- Run | Yrd Mat Mat Min Exi Min Mat Machines Disabled 1 | . . . . . . 1 Max in Single Turn 1 | . . . . . . 1 Machines Repaired . | . . . . . . . Machines Dismantled . | . . . . . . . Machines Sabotaged . | . . . . . . . Overloaded Fab Kills . | . . . . . . . Hacking | -11 -10 -9 -9 -9 -8 -8 --------- Run | Yrd Mat Mat Min Exi Min Mat Machines Accessed 9 | . 3 2 . 1 . 3 Terminals 6 | . 3 1 . . . 2 Fabricators . | . . . . . . . Repair Stations . | . . . . . . . Recycling Units . | . . . . . . . Scanalyzers 2 | . . 1 . . . 1 Garrison Access . | . . . . . . . Total Hacks 30 | . 12 4 . 1 . 13 Successful 15 | . 4 2 . 1 . 8 Failed 15 | . 8 2 . . . 5 Catastrophic 2 | . 2 . . . . . Database Lockouts . | . . . . . . . Manual 20 | . 11 1 . 1 . 7 Terminals 22 | . 12 2 . . . 8 Fabricators . | . . . . . . . Repair Stations . | . . . . . . . Recycling Units . | . . . . . . . Scanalyzers 7 | . . 2 . . . 5 Garrison Access . | . . . . . . . Terminal Hacks 2 | . . . . 1 . 1 Locate Traps 1 | . . . . . . 1 Proto ID Catalog 1 | . . . . 1 . . Fabricator Hacks . | . . . . . . . Repair Station Hacks . | . . . . . . . Recycling Unit Hacks . | . . . . . . . Scanalyzer 7 | . . 2 . . . 5 Insert Component 1 | . . . . . . 1 Analyze 3 | . . . . . . 3 Retrieve Study 3 | . . 2 . . . 1 Garrison Access Hacks . | . . . . . . . Unauthorized Hacks 6 | . 4 . . . . 2 Terminals 6 | . 4 . . . . 2 Botnet 5 | . 3 . . . . 2 Disrupt 1 | . 1 . . . . . Fabricators . | . . . . . . . Repair Stations . | . . . . . . . Recycling Units . | . . . . . . . Scanalyzers . | . . . . . . . Garrison Access . | . . . . . . . Data Cores Recovered . | . . . . . . . Used . | . . . . . . . Hacking Detections 7 | . 3 2 . . . 2 Full Trace Events . | . . . . . . . Feedback Events . | . . . . . . . Feedback Blocked . | . . . . . . . Robot Schematics Acquired . | . . . . . . . Robots Built . | . . . . . . . Authchips . | . . . . . . . Time . | . . . . . . . Total Robot Build Rating . | . . . . . . . Part Schematics Acquired 1 | . . . . . . 1 Parts Built . | . . . . . . . Authchips . | . . . . . . . Time . | . . . . . . . Total Part Build Rating . | . . . . . . . Part Studies Acquired 3 | . . 2 . . . 1 Parts Repaired . | . . . . . . . Time . | . . . . . . . Parts Recycled . | . . . . . . . Recycled Matter . | . . . . . . . Retrieved Matter . | . . . . . . . Retrieved Components . | . . . . . . . Parts Scanalyzed 1 | . . . . . . 1 Part Schematics Acquired 1 | . . . . . . 1 Parts Damaged . | . . . . . . . Bothacking | -11 -10 -9 -9 -9 -8 -8 ------------ Run | Yrd Mat Mat Min Exi Min Mat Used RIF Installer . | . . . . . . . Robots Hacked . | . . . . . . . Non-combat . | . . . . . . . Combat . | . . . . . . . Robot Hacks Applied . | . . . . . . . Relay Couplers Released . | . . . . . . . Fabnet Peak Effective % . | . . . . . . . Robots Rewired . | . . . . . . . Allies Hacked . | . . . . . . . Hacks Repelled . | . . . . . . . Allies | -11 -10 -9 -9 -9 -8 -8 -------- Run | Yrd Mat Mat Min Exi Min Mat Total Allies . | . . . . . . . Largest Group . | . . . . . . . Highest-Rated Group . | . . . . . . . Highest-Rated Ally . | . . . . . . . Total Orders . | . . . . . . . Ally Attacks . | . . . . . . . Total Damage . | . . . . . . . Kills . | . . . . . . . Allies Corrupted . | . . . . . . . Allies Melted . | . . . . . . . Intel | -11 -10 -9 -9 -9 -8 -8 ------- Run | Yrd Mat Mat Min Exi Min Mat Active Infowar (turns) 1976 | 107 291 476 237 306 179 380 Terrain 1574 | . . 474 237 306 179 378 Seismic 1808 | 107 291 476 237 306 179 212 Robot Analysis Total . | . . . . . . . Derelict Logs Recovered . | . . . . . . . Drone Launches . | . . . . . . . Drone Recoveries . | . . . . . . . Exploration | -11 -10 -9 -9 -9 -8 -8 ------------- Run | Yrd Mat Mat Min Exi Min Mat Turns Passed 2022 | 153 291 476 237 306 179 380 Spaces Moved 1514 | 76 181 372 224 339 85 237 Core 16 | 16 . . . . . . Treads . | . . . . . . . Legs 530 | 60 181 289 . . . . Wheels 968 | . . 83 224 339 85 237 Hover . | . . . . . . . Flight . | . . . . . . . Fastest Speed 50 | 50 120 90 90 90 90 80 Average Speed 98 | 105 120 108 90 90 90 85 Slowest Speed 175 | 120 120 175 90 90 90 95 Overloaded Moves . | . . . . . . . Propulsion Burnouts . | . . . . . . . Robots Hopped . | . . . . . . . Potential Cave-ins . | . . . . . . . Cave-ins Triggered . | . . . . . . . Exploration Rate (%) 35 | 4 45 27 51 63 24 35 Regions Visited 6 Branch Regions 3 Pre-discovered Areas . | . . . . . . . Known Exits Taken . | . . . . . . . Unknown Exits Taken 6 | 1 1 1 1 1 1 . Scrap Searched 1 | . . . 1 . . . Spaces Dug . | . . . . . . . Terrain Destroyed 4 | . . . . . . 4 Melee . | . . . . . . . Projectile 4 | . . . . . . 4 AOE . | . . . . . . . Terrain Rammed . | . . . . . . . Walls Destroyed . | . . . . . . . Machines Disabled . | . . . . . . . Actions | -11 -10 -9 -9 -9 -8 -8 --------- Run | Yrd Mat Mat Min Exi Min Mat Total 1904 | 114 217 416 247 340 177 393 Wait 261 | 2 4 12 16 . 88 139 Move 1508 | 75 180 371 223 338 84 237 Hop . | . . . . . . . Pick Up 25 | 10 5 6 1 1 . 2 Fast Attach 6 | 3 1 2 . . . . Attach 9 | 4 . 3 . . . 2 Detach 1 | . 1 . . . . . Swap 8 | . 2 3 . . . 3 Drop 12 | 1 4 4 1 1 . 1 Fire 74 | 19 20 15 6 . 5 9 Melee . | . . . . . . . Ram . | . . . . . . . Kick . | . . . . . . . Crush . | . . . . . . . Escape Stasis . | . . . . . . . Rewire . | . . . . . . . Trap . | . . . . . . . Miscellaneous . | . . . . . . . Route ------- -11/Scrapyard -10/Materials -9/Materials -9/Mines (discovered 2 exits: *Mat / *Exi) -9/Exiles -8/Mines -8/Materials (discovered 1 exit: [*Fac]) History --------- Turn | Location | Event 13 | -11/Scrapyard | Discovered new exit (range 16) 154 | -11/Scrapyard | Entered Materials 308 | -10/Materials | Build established: Mutant 388 | -10/Materials | Discovered new exit (range 16) 445 | -10/Materials | Entered another Materials area 445 | -9/Materials | Evolved 2 slots: Utility x2 612 | -9/Materials | Discovered new exit (range 16) 921 | -9/Materials | Entered Mines 937 | -9/Mines | Discovered new exit (range 10) 989 | -9/Mines | Found a hidden stash of uninstalled traps 1035 | -9/Mines | Found a damaged Exp. Sensor Array with a note attached 1092 | -9/Mines | A weapon hastily lodged in a ceiling crevice suddenly fell to the ground 1154 | -9/Mines | Deemed a non-threat by the Exiles lab entrance 1154 | -9/Mines | Discovered new exit (range 5) 1158 | -9/Mines | Entered Exiles 1172 | -9/Exiles | Discovered new exit (range 14) 1200 | -9/Exiles | Met 8R-AWN 1217 | -9/Exiles | Met EX-HEX 1241 | -9/Exiles | Met EX-BIN 1264 | -9/Exiles | Aligned with FarCom system 1265 | -9/Exiles | Given EX-Vault access code 1301 | -9/Exiles | Opened EX-Vault 1307 | -9/Exiles | Found 0b10 Alert Chip 1326 | -9/Exiles | Warned to stay clear of 0b10 Research branches 1352 | -9/Exiles | Met EX-DEC 1464 | -9/Exiles | Left Exiles lab with 0b10 Alert Chip 1464 | -9/Exiles | Entered Mines 1589 | -8/Mines | Discovered new exit (range 16) 1643 | -8/Mines | Entered Materials 1643 | -8/Materials | Evolved 2 slots: Utility x1, Weapon x1 1760 | -8/Materials | Build established: Skirmisher 1992 | -8/Materials | Discovered new exit (range 14) 2023 | -8/Materials | Self-destructed Last Messages --------------- 01976_ S-10 Pest suffers critical hit (Destroy). 01976_ Destroyed Flight Unit. 01976_ S-10 Pest knocked back. 01978_ U-05 Engineer builds a Wall. 01979_ Slug penetrates Pressure Siphon. 01979_ Pressure Siphon disabled. 01982_ Critical hit (Burn: +37). 01983_ U-05 Engineer builds a Wall. 01992_ EXIT=FOUND 01993_ Ion Engine destroyed. 01993_ Terrain Scan Processor destroyed. 01993_ Critical hit (Blast). 01993_ Knocked back. 01997_ Arm. Wheel+ blasted off. 01997_ Acquired 7 matter. 01999_ Penetrated by Slug. 01999_ Acquired 4 matter. 02003_ Critical hit (Burn: +37). 02004_ Slug Cannon destroyed. 02006_ K-01 Serf destroyed. Map ----- +----------------------------------------------------+ | % %#?????????? | | """ ""% """ """ ##??????#?? | | """ """ """ """ = #??#???#??? | | """ """ """ """ #??? ?????? | | """ """ """ """ ##????????? | | #????????? | | # """ ??? | | ] " ? | | ! * # # | | =% #? [% ? | | ######## ##########???? ? | | #? ??# #???????????? ?? ? | | #????? # g########???????#??? | | +? ??? # g #??????????? | | ????????# #??????????? | | ?? ???? ??# g #??????????? | | ??????????######## #??????????? | | ????????? # ??# #???#??????? | | ???????"??# """ # #??????????? | | ????????? # """ + g#######????? | | ??????????# """ # #????? | | ??????????# ??# ##### #????? | | ??????????###????# #???# #????? | | ???????? ???????###+##???#s#????? | | ???????????????????????###/###??? | | ?????????#?????????????# @ #?? | | ???????????????????????# a ! #?? | | ???????????????????????# #?? | | ???????????????????????# #?? | | ???????????????????????# #?? | | ??????????????? ???????# #?? | | ???????????????????????##+##w##?? | | ???????????????????????????? #??? | | ???????????????????????????? #??? | | ??????????????????????????? #??? | | ???????????????????????????? #??? | | ???????????????????????????? #??? | | ????????????????????????????w#??? | | ?????????????????????????????#??? | | ????????????????????????????????? | | ????????????????????????????????? | | ????????????????????????????o???? | | ????????????????????????????Y???? | | ????????????????????????????????? | | ????????????????????????????????? | | ????????????????????????????????? | | ????????????????????????????????? | | ????????????????????????????????? | | ????????????????????????????????? | | ????????????????????????????????? | +----------------------------------------------------+ Best States ------------- Heat Dissipation 53 Energy Generation 10 Energy Capacity 250 Matter Stores 300 Matter Capacity 300 Sight Range 16 Terrain Scan Range 16 Terrain Scan Density 85 Evasion (%) 55 Item Schematics ----------------- Arm. Wheel | -8/Materials | Scanalyzed Robot Schematics ------------------ None Fabricated ------------ Nothing Repaired ---------- Nothing Studied --------- Aluminum Leg | -9/Materials | Hacked Med. Laser | -9/Materials | Hacked Arm. Wheel | -8/Materials | Hacked Alien Tech Used ----------------- None Achievements -------------- None Challenges ------------ None Game ------ Seed RiotSapperRecalibrator Manual? 0 Play Time 00:27:04 Cumulative 285.2 hours Start 2026.03.16 @ 22:30:05 End 2026.03.16 @ 22:59:16 Sessions 1 Manual Loads 0 Difficulty Rogue Special Mode None Game No. 539 Rogue 539 Adventurer 0 Explorer 0 Win Type - Total 1 Types 1/0/0/0/0/0/0/0/0/0 Lore% 37 Gallery% 48 Achievement% 31 Wizard Run 0 Options --------- Layout 1 ASCII 0 Keyboard 1 Movement Vi Keybinds 0 Fullscreen 0 Font 20/Smallcaps Map View 59x39 Zoom Use 0% Tactical HUD 1 Map Filters NONE Filters NONE Steam 1 RUN: 9c726473-6f5f-4c1f-b2ce-d51af07d3ccb